[Event "Titled Tuesday Blitz July 4 Late 2023"]
[White "Domingo Nunez, Alejandro"]
[Black "Gyulamiryan-koryun"]
[WhiteFideId "22245561"]
[WhiteElo "2607"]
[BlackElo "1722"]
[Result "1-0"]
[Round "2"]
[TimeControl "180+2"]
[Date "2023.07.04"]
[WhiteClock "0:00:51"]
[BlackClock "0:00:57"]
[Board "89"]

1. Nf3 {[%clk 0:03:00]}  Nf6 {[%clk 0:02:58]} 2. g3 {[%clk 0:03:01]}  g6 {[%clk 0:02:58]} 3. b3 {[%clk 0:03:01]}  Bg7 {[%clk 0:02:58]} 4. Bb2 {[%clk 0:03:02]}  O-O {[%clk 0:02:58]} 5. Bg2 {[%clk 0:03:02]}  Re8 {[%clk 0:02:58]} 6. O-O {[%clk 0:03:01]}  c6 {[%clk 0:02:57]} 7. c4 {[%clk 0:03:01]}  e6 {[%clk 0:02:57]} 8. d4 {[%clk 0:02:58]}  d5 {[%clk 0:02:57]} 9. Nbd2 {[%clk 0:02:58]}  Nbd7 {[%clk 0:02:56]} 10. Qc2 {[%clk 0:02:58]}  Nb6 {[%clk 0:02:54]} 11. Rad1 {[%clk 0:02:52]}  a5 {[%clk 0:02:53]} 12. e4 {[%clk 0:02:52]}  a4 {[%clk 0:02:50]} 13. e5 {[%clk 0:02:44]}  Nfd7 {[%clk 0:02:48]} 14. c5 {[%clk 0:02:44]}  axb3 {[%clk 0:02:45]} 15. axb3 {[%clk 0:02:44]}  Ra2 {[%clk 0:02:28]} 16. cxb6 {[%clk 0:02:30]}  Qxb6 {[%clk 0:02:26]} 17. Ra1 {[%clk 0:02:30]}  Ra5 {[%clk 0:02:22]} 18. Rxa5 {[%clk 0:02:28]}  Qxa5 {[%clk 0:02:22]} 19. Ra1 {[%clk 0:02:29]}  Qb6 {[%clk 0:02:22]} 20. Ba3 {[%clk 0:02:08]}  Qb5 {[%clk 0:02:19]} 21. Bf1 {[%clk 0:02:07]}  Qb6 {[%clk 0:02:19]} 22. Bd6 {[%clk 0:02:03]}  f6 {[%clk 0:02:10]} 23. b4 {[%clk 0:01:52]}  fxe5 {[%clk 0:02:07]} 24. dxe5 {[%clk 0:01:53]}  Qd8 {[%clk 0:01:51]} 25. b5 {[%clk 0:01:50]}  c5 {[%clk 0:01:38]} 26. Bxc5 {[%clk 0:01:50]}  Nxe5 {[%clk 0:01:36]} 27. Nxe5 {[%clk 0:01:48]}  Bxe5 {[%clk 0:01:36]} 28. Re1 {[%clk 0:01:49]}  Bf6 {[%clk 0:01:23]} 29. Nb3 {[%clk 0:01:46]}  b6 {[%clk 0:01:22]} 30. Ba3 {[%clk 0:01:43]}  Bb7 {[%clk 0:01:21]} 31. Bg2 {[%clk 0:01:41]}  Qd7 {[%clk 0:01:21]} 32. Qd3 {[%clk 0:01:37]}  Rc8 {[%clk 0:01:19]} 33. Nd4 {[%clk 0:01:20]}  e5 {[%clk 0:01:11]} 34. Nc6 {[%clk 0:01:19]}  Rxc6 {[%clk 0:01:10]} 35. bxc6 {[%clk 0:01:19]}  Bxc6 {[%clk 0:01:10]} 36. Rd1 {[%clk 0:00:59]}  d4 {[%clk 0:01:07]} 37. Qc4+ {[%clk 0:00:58]}  Kg7 {[%clk 0:01:05]} 38. Qxc6 {[%clk 0:00:57]}  Qg4 {[%clk 0:01:05]} 39. Bf3 {[%clk 0:00:54]}  Qf5 {[%clk 0:01:05]} 40. Qc7+ {[%clk 0:00:52]}  Kh6 {[%clk 0:01:01]} 41. Bf8+ {[%clk 0:00:51]}  Kg5 {[%clk 0:00:57]} 42. h4# {[%clk 0:00:51]} 1-0


[Site "https://www.chess.com"]

[Event "Titled Tuesday Blitz July 4 Late 2023"]
[White "Nakamura, Hikaru"]
[Black "marik_spb"]
[WhiteFideId "2016192"]
[WhiteElo "3177"]
[BlackElo "2500"]
[Result "1-0"]
[Round "2"]
[TimeControl "180+2"]
[Date "2023.07.04"]
[WhiteClock "0:02:29"]
[BlackClock "0:01:08"]
[Board "90"]

1. Nf3 {[%clk 0:03:00]}  Nf6 {[%clk 0:02:59]} 2. b3 {[%clk 0:03:01]}  g6 {[%clk 0:02:57]} 3. Bb2 {[%clk 0:03:02]}  Bg7 {[%clk 0:02:58]} 4. d4 {[%clk 0:03:03]}  O-O {[%clk 0:02:58]} 5. e3 {[%clk 0:03:04]}  d5 {[%clk 0:02:57]} 6. c4 {[%clk 0:03:04]}  c6 {[%clk 0:02:57]} 7. Bd3 {[%clk 0:03:04]}  Ne4 {[%clk 0:02:53]} 8. Nbd2 {[%clk 0:03:04]}  Bf5 {[%clk 0:02:51]} 9. Qc2 {[%clk 0:03:04]}  Nxd2 {[%clk 0:02:50]} 10. Qxd2 {[%clk 0:03:01]}  Nd7 {[%clk 0:02:41]} 11. Bxf5 {[%clk 0:03:01]}  gxf5 {[%clk 0:02:41]} 12. h3 {[%clk 0:03:02]}  e6 {[%clk 0:02:39]} 13. g4 {[%clk 0:03:02]}  Qf6 {[%clk 0:02:34]} 14. Ke2 {[%clk 0:03:00]}  dxc4 {[%clk 0:02:17]} 15. bxc4 {[%clk 0:03:00]}  Nb6 {[%clk 0:02:18]} 16. Qc2 {[%clk 0:02:58]}  Rfd8 {[%clk 0:02:14]} 17. gxf5 {[%clk 0:02:56]}  exf5 {[%clk 0:02:03]} 18. Rhg1 {[%clk 0:02:53]}  Kf8 {[%clk 0:01:53]} 19. Rg5 {[%clk 0:02:44]}  f4 {[%clk 0:01:49]} 20. Rag1 {[%clk 0:02:36]}  Bh6 {[%clk 0:01:41]} 21. Ba3+ {[%clk 0:02:31]}  Ke8 {[%clk 0:01:41]} 22. Qe4+ {[%clk 0:02:31]}  Kd7 {[%clk 0:01:37]} 23. Rf5 {[%clk 0:02:28]}  Qe6 {[%clk 0:01:34]} 24. Rxf7+ {[%clk 0:02:28]}  Qxf7 {[%clk 0:01:29]} 25. Ne5+ {[%clk 0:02:28]}  Kc7 {[%clk 0:01:08]} 26. Nxf7 {[%clk 0:02:29]} 1-0


[Site "https://www.chess.com"]

[Event "Titled Tuesday Blitz July 4 Late 2023"]
[White "Luong Phuong Hanh"]
[Black "Bordi, Kevin"]
[WhiteFideId "12401013"]
[BlackFideId "621862"]
[WhiteElo "2457"]
[BlackElo "2871"]
[Result "0-1"]
[Round "2"]
[TimeControl "180+2"]
[Date "2023.07.04"]
[WhiteClock "0:00:02"]
[BlackClock "0:00:28"]
[Board "92"]

1. d4 {[%clk 0:02:49]}  d5 {[%clk 0:03:00]} 2. c4 {[%clk 0:02:48]}  c6 {[%clk 0:03:00]} 3. Nf3 {[%clk 0:02:49]}  Nf6 {[%clk 0:03:00]} 4. Qc2 {[%clk 0:02:48]}  g6 {[%clk 0:03:00]} 5. Bf4 {[%clk 0:02:47]}  Bf5 {[%clk 0:03:00]} 6. Qb3 {[%clk 0:02:47]}  Qb6 {[%clk 0:03:01]} 7. e3 {[%clk 0:02:47]}  Nbd7 {[%clk 0:03:01]} 8. Nc3 {[%clk 0:02:45]}  Bg7 {[%clk 0:03:01]} 9. h3 {[%clk 0:02:43]}  O-O {[%clk 0:03:01]} 10. c5 {[%clk 0:02:40]}  Qxb3 {[%clk 0:03:00]} 11. axb3 {[%clk 0:02:41]}  a6 {[%clk 0:03:01]} 12. b4 {[%clk 0:02:41]}  Ne4 {[%clk 0:03:01]} 13. g4 {[%clk 0:02:31]}  Nxc3 {[%clk 0:02:59]} 14. gxf5 {[%clk 0:02:31]}  Ne4 {[%clk 0:02:58]} 15. fxg6 {[%clk 0:02:29]}  fxg6 {[%clk 0:02:56]} 16. Bd3 {[%clk 0:02:16]}  Rae8 {[%clk 0:02:49]} 17. Bxe4 {[%clk 0:01:38]}  dxe4 {[%clk 0:02:50]} 18. Nd2 {[%clk 0:01:29]}  Bxd4 {[%clk 0:02:43]} 19. O-O-O {[%clk 0:01:21]}  Bxc5 {[%clk 0:01:30]} 20. Nxe4 {[%clk 0:01:03]}  Bd6 {[%clk 0:01:21]} 21. Nxd6 {[%clk 0:00:57]}  exd6 {[%clk 0:01:22]} 22. Rxd6 {[%clk 0:00:58]}  Nf6 {[%clk 0:01:21]} 23. Bh6 {[%clk 0:00:52]}  Rf7 {[%clk 0:01:20]} 24. f3 {[%clk 0:00:35]}  Nd5 {[%clk 0:01:16]} 25. e4 {[%clk 0:00:27]}  Nxb4 {[%clk 0:01:16]} 26. Rf1 {[%clk 0:00:20]}  c5 {[%clk 0:01:10]} 27. f4 {[%clk 0:00:20]}  Nc6 {[%clk 0:01:06]} 28. e5 {[%clk 0:00:20]}  Rxe5 {[%clk 0:00:56]} 29. fxe5 {[%clk 0:00:16]}  Rxf1+ {[%clk 0:00:56]} 30. Kd2 {[%clk 0:00:17]}  Kf7 {[%clk 0:00:40]} 31. Rd7+ {[%clk 0:00:12]}  Ke6 {[%clk 0:00:40]} 32. Rxb7 {[%clk 0:00:13]}  Nxe5 {[%clk 0:00:34]} 33. Rxh7 {[%clk 0:00:12]}  Rf2+ {[%clk 0:00:32]} 34. Kc3 {[%clk 0:00:11]}  Rf3+ {[%clk 0:00:32]} 35. Kc2 {[%clk 0:00:11]}  Rxh3 {[%clk 0:00:32]} 36. Rh8 {[%clk 0:00:07]}  Nf7 {[%clk 0:00:25]} 37. Re8+ {[%clk 0:00:06]}  Kd7 {[%clk 0:00:26]} 38. Ra8 {[%clk 0:00:06]}  Nxh6 {[%clk 0:00:24]} 39. Rxa6 {[%clk 0:00:06]}  Rg3 {[%clk 0:00:25]} 40. Ra7+ {[%clk 0:00:04]}  Kc6 {[%clk 0:00:25]} 41. Rh7 {[%clk 0:00:05]}  Nf5 {[%clk 0:00:25]} 42. Kb1 {[%clk 0:00:05]}  Nd4 {[%clk 0:00:25]} 43. Ka2 {[%clk 0:00:06]}  g5 {[%clk 0:00:26]} 44. Rg7 {[%clk 0:00:06]}  g4 {[%clk 0:00:26]} 45. b3 {[%clk 0:00:06]}  Nxb3 {[%clk 0:00:26]} 46. Ka3 {[%clk 0:00:06]}  Nd4+ {[%clk 0:00:26]} 47. Ka4 {[%clk 0:00:06]}  Kd5 {[%clk 0:00:27]} 48. Rg5+ {[%clk 0:00:06]}  Kc4 {[%clk 0:00:27]} 49. Rg8 {[%clk 0:00:04]}  Rg1 {[%clk 0:00:27]} 50. Ka5 {[%clk 0:00:04]}  g3 {[%clk 0:00:28]} 51. Kb6 {[%clk 0:00:02]}  g2 {[%clk 0:00:28]} 0-1


[Site "https://www.chess.com"]

[Event "Titled Tuesday Blitz July 4 Late 2023"]
[White "Koc, Przemyslaw"]
[Black "Weetik, Vjacheslav"]
[WhiteFideId "1109081"]
[BlackFideId "4153472"]
[WhiteElo "2445"]
[BlackElo "2738"]
[Result "0-1"]
[Round "2"]
[TimeControl "180+2"]
[Date "2023.07.04"]
[WhiteClock "0:01:41"]
[BlackClock "0:00:54"]
[Board "95"]

1. d4 {[%clk 0:03:00]}  Nf6 {[%clk 0:02:58]} 2. Nf3 {[%clk 0:03:01]}  g6 {[%clk 0:02:58]} 3. Bg5 {[%clk 0:03:01]}  Bg7 {[%clk 0:02:57]} 4. Nbd2 {[%clk 0:03:02]}  d5 {[%clk 0:02:58]} 5. e3 {[%clk 0:02:58]}  O-O {[%clk 0:02:56]} 6. Bd3 {[%clk 0:02:58]}  Nbd7 {[%clk 0:02:56]} 7. O-O {[%clk 0:02:57]}  c5 {[%clk 0:02:57]} 8. c3 {[%clk 0:02:57]}  Re8 {[%clk 0:02:57]} 9. b4 {[%clk 0:02:55]}  c4 {[%clk 0:02:55]} 10. Bc2 {[%clk 0:02:55]}  h6 {[%clk 0:02:55]} 11. Bh4 {[%clk 0:02:55]}  a5 {[%clk 0:02:47]} 12. b5 {[%clk 0:02:49]}  a4 {[%clk 0:02:24]} 13. a3 {[%clk 0:02:42]}  Qa5 {[%clk 0:02:17]} 14. Nb1 {[%clk 0:02:31]}  Qxb5 {[%clk 0:02:10]} 15. Nbd2 {[%clk 0:02:20]}  Qa5 {[%clk 0:02:00]} 16. Rc1 {[%clk 0:02:18]}  Qxc3 {[%clk 0:01:42]} 17. Bxg6 {[%clk 0:02:18]}  Qxa3 {[%clk 0:01:42]} 18. Bb1 {[%clk 0:02:18]}  c3 {[%clk 0:01:29]} 19. Bxf6 {[%clk 0:02:15]}  Nxf6 {[%clk 0:01:21]} 20. e4 {[%clk 0:01:59]}  cxd2 {[%clk 0:01:20]} 21. Nxd2 {[%clk 0:02:00]}  dxe4 {[%clk 0:01:05]} 22. Nxe4 {[%clk 0:01:59]}  Nxe4 {[%clk 0:01:01]} 23. Bxe4 {[%clk 0:02:00]}  Qd6 {[%clk 0:00:59]} 24. d5 {[%clk 0:01:59]}  a3 {[%clk 0:00:58]} 25. Qb3 {[%clk 0:01:57]}  a2 {[%clk 0:00:57]} 26. Qb5 {[%clk 0:01:44]}  Bd7 {[%clk 0:00:54]} 27. Qxb7 {[%clk 0:01:41]}  a1=Q {[%clk 0:00:54]} 0-1


[Site "https://www.chess.com"]

[Event "Titled Tuesday Blitz July 4 Late 2023"]
[White "Goryachkina, Aleksandra"]
[Black "krucki03"]
[WhiteFideId "4147103"]
[WhiteElo "2727"]
[BlackElo "2405"]
[Result "1/2-1/2"]
[Round "2"]
[TimeControl "180+2"]
[Date "2023.07.04"]
[WhiteClock "0:00:04"]
[BlackClock "0:00:09"]
[Board "96"]

1. e4 {[%clk 0:03:00]}  c5 {[%clk 0:02:57]} 2. Nf3 {[%clk 0:03:00]}  d6 {[%clk 0:02:57]} 3. d4 {[%clk 0:02:59]}  cxd4 {[%clk 0:02:57]} 4. Nxd4 {[%clk 0:02:59]}  Nf6 {[%clk 0:02:57]} 5. Nc3 {[%clk 0:02:59]}  g6 {[%clk 0:02:55]} 6. Be3 {[%clk 0:02:52]}  Bg7 {[%clk 0:02:56]} 7. f3 {[%clk 0:02:51]}  O-O {[%clk 0:02:55]} 8. Bc4 {[%clk 0:02:51]}  Nc6 {[%clk 0:02:55]} 9. Bb3 {[%clk 0:02:46]}  Bd7 {[%clk 0:02:52]} 10. Qd2 {[%clk 0:02:46]}  Rc8 {[%clk 0:02:51]} 11. O-O-O {[%clk 0:02:38]}  Nxd4 {[%clk 0:02:51]} 12. Bxd4 {[%clk 0:02:38]}  b5 {[%clk 0:02:51]} 13. Nd5 {[%clk 0:02:19]}  Nxd5 {[%clk 0:02:50]} 14. Bxd5 {[%clk 0:02:14]}  a5 {[%clk 0:02:39]} 15. Bxg7 {[%clk 0:01:58]}  Kxg7 {[%clk 0:02:38]} 16. Qd4+ {[%clk 0:01:57]}  Kg8 {[%clk 0:02:38]} 17. a3 {[%clk 0:01:56]}  b4 {[%clk 0:02:29]} 18. axb4 {[%clk 0:01:44]}  axb4 {[%clk 0:02:30]} 19. Bb3 {[%clk 0:01:40]}  Qa5 {[%clk 0:02:09]} 20. h4 {[%clk 0:01:23]}  Be6 {[%clk 0:02:09]} 21. Bxe6 {[%clk 0:00:47]}  fxe6 {[%clk 0:02:10]} 22. Kd2 {[%clk 0:00:42]}  e5 {[%clk 0:01:29]} 23. Qd3 {[%clk 0:00:32]}  Qa2 {[%clk 0:01:18]} 24. Qb3+ {[%clk 0:00:19]}  Qxb3 {[%clk 0:01:11]} 25. cxb3 {[%clk 0:00:20]}  Rc5 {[%clk 0:00:50]} 26. Rc1 {[%clk 0:00:19]}  Rfc8 {[%clk 0:00:50]} 27. Rxc5 {[%clk 0:00:19]}  Rxc5 {[%clk 0:00:50]} 28. Ra1 {[%clk 0:00:18]}  Kf7 {[%clk 0:00:20]} 29. Ra8 {[%clk 0:00:18]}  Rb5 {[%clk 0:00:15]} 30. Kd3 {[%clk 0:00:16]}  Rc5 {[%clk 0:00:15]} 31. Kd2 {[%clk 0:00:15]}  Rb5 {[%clk 0:00:16]} 32. g4 {[%clk 0:00:14]}  h6 {[%clk 0:00:10]} 33. Ra7 {[%clk 0:00:10]}  Kf6 {[%clk 0:00:10]} 34. Ra4 {[%clk 0:00:06]}  Ke6 {[%clk 0:00:07]} 35. Ra8 {[%clk 0:00:06]}  Kf6 {[%clk 0:00:08]} 36. Kd3 {[%clk 0:00:03]}  Rc5 {[%clk 0:00:08]} 37. Kd2 {[%clk 0:00:04]}  Rb5 {[%clk 0:00:08]} 38. Rf8+ {[%clk 0:00:03]}  Kg7 {[%clk 0:00:08]} 39. Ra8 {[%clk 0:00:04]}  Kf6 {[%clk 0:00:09]} 1/2-1/2


[Site "https://www.chess.com"]

[Event "Titled Tuesday Blitz July 4 Late 2023"]
[White "Pasti, Aron"]
[Black "De Prado Rodriguez, Oscar Bruno"]
[WhiteFideId "785857"]
[BlackFideId "2203600"]
[WhiteElo "2568"]
[BlackElo "2399"]
[Result "0-1"]
[Round "2"]
[TimeControl "180+2"]
[Date "2023.07.04"]
[WhiteClock "0:00:11"]
[BlackClock "0:00:34"]
[Board "99"]

1. e4 {[%clk 0:03:00]}  d5 {[%clk 0:02:37]} 2. exd5 {[%clk 0:02:59]}  Qxd5 {[%clk 0:02:37]} 3. Nc3 {[%clk 0:02:59]}  Qd6 {[%clk 0:02:38]} 4. Nf3 {[%clk 0:02:59]}  Nf6 {[%clk 0:02:38]} 5. Bc4 {[%clk 0:03:00]}  g6 {[%clk 0:02:39]} 6. O-O {[%clk 0:03:00]}  Bg7 {[%clk 0:02:39]} 7. Re1 {[%clk 0:02:59]}  O-O {[%clk 0:02:40]} 8. d3 {[%clk 0:03:00]}  a6 {[%clk 0:02:40]} 9. g3 {[%clk 0:02:59]}  b5 {[%clk 0:02:40]} 10. Bf4 {[%clk 0:02:58]}  Qb6 {[%clk 0:02:40]} 11. Bb3 {[%clk 0:02:52]}  Bb7 {[%clk 0:02:31]} 12. Rxe7 {[%clk 0:02:45]}  Nbd7 {[%clk 0:02:29]} 13. Nd5 {[%clk 0:02:31]}  Nxd5 {[%clk 0:02:17]} 14. Bxd5 {[%clk 0:02:30]}  Bxd5 {[%clk 0:02:11]} 15. Rxd7 {[%clk 0:02:30]}  c6 {[%clk 0:01:35]} 16. Be3 {[%clk 0:02:18]}  Qb8 {[%clk 0:01:29]} 17. Bf4 {[%clk 0:01:55]}  Qc8 {[%clk 0:01:25]} 18. Rc7 {[%clk 0:01:54]}  Qh3 {[%clk 0:01:24]} 19. c4 {[%clk 0:01:29]}  bxc4 {[%clk 0:01:16]} 20. dxc4 {[%clk 0:01:30]}  Be4 {[%clk 0:01:15]} 21. Re7 {[%clk 0:01:21]}  Rfe8 {[%clk 0:01:14]} 22. Rxe8+ {[%clk 0:00:58]}  Rxe8 {[%clk 0:01:15]} 23. Qe2 {[%clk 0:00:50]}  Bxb2 {[%clk 0:01:08]} 24. Re1 {[%clk 0:00:43]}  Bg7 {[%clk 0:01:02]} 25. Qf1 {[%clk 0:00:35]}  Qh5 {[%clk 0:00:54]} 26. Ng5 {[%clk 0:00:33]}  f5 {[%clk 0:00:50]} 27. f3 {[%clk 0:00:26]}  Bd4+ {[%clk 0:00:46]} 28. Kh1 {[%clk 0:00:24]}  h6 {[%clk 0:00:40]} 29. Nxe4 {[%clk 0:00:20]}  fxe4 {[%clk 0:00:38]} 30. Rxe4 {[%clk 0:00:20]}  Rxe4 {[%clk 0:00:37]} 31. fxe4 {[%clk 0:00:21]}  Qc5 {[%clk 0:00:36]} 32. Qd3 {[%clk 0:00:20]}  Kh7 {[%clk 0:00:34]} 33. Kg2 {[%clk 0:00:19]}  Bg1 {[%clk 0:00:31]} 34. Qf1 {[%clk 0:00:17]}  Bd4 {[%clk 0:00:29]} 35. e5 {[%clk 0:00:17]}  Bxe5 {[%clk 0:00:29]} 36. Bxe5 {[%clk 0:00:17]}  Qxe5 {[%clk 0:00:30]} 37. Qf7+ {[%clk 0:00:16]}  Qg7 {[%clk 0:00:27]} 38. Qxg7+ {[%clk 0:00:17]}  Kxg7 {[%clk 0:00:28]} 39. Kf3 {[%clk 0:00:17]}  Kf6 {[%clk 0:00:29]} 40. Kf4 {[%clk 0:00:14]}  g5+ {[%clk 0:00:27]} 41. Kg4 {[%clk 0:00:13]}  Kg6 {[%clk 0:00:27]} 42. c5 {[%clk 0:00:12]}  h5+ {[%clk 0:00:27]} 43. Kf3 {[%clk 0:00:13]}  Kf5 {[%clk 0:00:28]} 44. h3 {[%clk 0:00:13]}  g4+ {[%clk 0:00:28]} 45. hxg4+ {[%clk 0:00:12]}  hxg4+ {[%clk 0:00:29]} 46. Ke3 {[%clk 0:00:13]}  Ke5 {[%clk 0:00:29]} 47. a3 {[%clk 0:00:13]}  a5 {[%clk 0:00:28]} 48. a4 {[%clk 0:00:12]}  Kd5 {[%clk 0:00:28]} 49. Kf4 {[%clk 0:00:12]}  Kxc5 {[%clk 0:00:28]} 50. Kxg4 {[%clk 0:00:13]}  Kb4 {[%clk 0:00:29]} 51. Kf4 {[%clk 0:00:13]}  c5 {[%clk 0:00:30]} 52. g4 {[%clk 0:00:13]}  c4 {[%clk 0:00:31]} 53. g5 {[%clk 0:00:13]}  c3 {[%clk 0:00:32]} 54. Ke3 {[%clk 0:00:11]}  Kb3 {[%clk 0:00:31]} 55. g6 {[%clk 0:00:11]}  c2 {[%clk 0:00:32]} 56. Kd2 {[%clk 0:00:11]}  Kb2 {[%clk 0:00:32]} 57. g7 {[%clk 0:00:12]}  c1=Q+ {[%clk 0:00:33]} 58. Kd3 {[%clk 0:00:12]}  Qg5 {[%clk 0:00:33]} 59. g8=Q {[%clk 0:00:11]}  Qxg8 {[%clk 0:00:34]} 0-1


[Site "https://www.chess.com"]

[Event "Titled Tuesday Blitz July 4 Late 2023"]
[White "Pranav, V"]
[Black "Kochiev, Ivan"]
[WhiteFideId "25060783"]
[BlackFideId "2917890"]
[WhiteElo "2986"]
[BlackElo "2540"]
[Result "1-0"]
[Round "2"]
[TimeControl "180+2"]
[Date "2023.07.04"]
[WhiteClock "0:00:26"]
[BlackClock "0:00:02"]
[Board "102"]

1. e4 {[%clk 0:03:00]}  c5 {[%clk 0:02:16]} 2. Nf3 {[%clk 0:02:57]}  d6 {[%clk 0:02:16]} 3. d4 {[%clk 0:02:57]}  cxd4 {[%clk 0:02:17]} 4. Nxd4 {[%clk 0:02:58]}  Nf6 {[%clk 0:02:17]} 5. Nc3 {[%clk 0:02:59]}  Nc6 {[%clk 0:02:17]} 6. Bg5 {[%clk 0:02:58]}  e6 {[%clk 0:02:17]} 7. Qd2 {[%clk 0:02:56]}  a6 {[%clk 0:02:17]} 8. O-O-O {[%clk 0:02:56]}  Bd7 {[%clk 0:02:16]} 9. f4 {[%clk 0:02:56]}  Be7 {[%clk 0:02:06]} 10. Nb3 {[%clk 0:02:51]}  Rc8 {[%clk 0:02:00]} 11. Be2 {[%clk 0:02:42]}  b5 {[%clk 0:01:52]} 12. Bf3 {[%clk 0:02:34]}  Qc7 {[%clk 0:01:30]} 13. Rhe1 {[%clk 0:02:27]}  O-O {[%clk 0:01:23]} 14. Bxf6 {[%clk 0:02:24]}  gxf6 {[%clk 0:01:21]} 15. Re3 {[%clk 0:02:18]}  b4 {[%clk 0:01:12]} 16. Ne2 {[%clk 0:02:15]}  a5 {[%clk 0:01:10]} 17. Kb1 {[%clk 0:02:03]}  a4 {[%clk 0:01:03]} 18. Nbc1 {[%clk 0:02:02]}  Na5 {[%clk 0:01:00]} 19. b3 {[%clk 0:01:57]}  Bc6 {[%clk 0:00:41]} 20. Nd4 {[%clk 0:01:43]}  Rfd8 {[%clk 0:00:39]} 21. Be2 {[%clk 0:01:39]}  Qb6 {[%clk 0:00:37]} 22. Bh5 {[%clk 0:00:55]}  Qc5 {[%clk 0:00:22]} 23. f5 {[%clk 0:00:53]}  e5 {[%clk 0:00:16]} 24. Rg3+ {[%clk 0:00:44]}  Kh8 {[%clk 0:00:14]} 25. Nxc6 {[%clk 0:00:44]}  Qxc6 {[%clk 0:00:12]} 26. Bxf7 {[%clk 0:00:36]}  Qxe4 {[%clk 0:00:12]} 27. Nd3 {[%clk 0:00:35]}  Qc6 {[%clk 0:00:04]} 28. Rc1 {[%clk 0:00:33]}  e4 {[%clk 0:00:02]} 29. Qh6 {[%clk 0:00:32]}  Rg8 {[%clk 0:00:02]} 30. Bxg8 {[%clk 0:00:29]}  Rxg8 {[%clk 0:00:03]} 31. Rxg8+ {[%clk 0:00:27]}  Kxg8 {[%clk 0:00:04]} 32. Nf4 {[%clk 0:00:28]}  Qc3 {[%clk 0:00:02]} 33. Ne6 {[%clk 0:00:24]}  Kf7 {[%clk 0:00:02]} 34. Qh5+ {[%clk 0:00:25]}  Kg8 {[%clk 0:00:01]} 35. Qe8+ {[%clk 0:00:25]}  Bf8 {[%clk 0:00:02]} 36. Qxf8# {[%clk 0:00:26]} 1-0


[Site "https://www.chess.com"]

[Event "Titled Tuesday Blitz July 4 Late 2023"]
[White "SicilianPanzer"]
[Black "Svane, Rasmus"]
[BlackFideId "4657101"]
[WhiteElo "2241"]
[BlackElo "2934"]
[Result "0-1"]
[Round "2"]
[TimeControl "180+2"]
[Date "2023.07.04"]
[WhiteClock "0:00:00"]
[BlackClock "0:01:11"]
[Board "103"]

1. Nf3 {[%clk 0:02:59]}  d5 {[%clk 0:02:59]} 2. g3 {[%clk 0:02:58]}  Nd7 {[%clk 0:02:57]} 3. d4 {[%clk 0:02:57]}  b5 {[%clk 0:02:54]} 4. Bg2 {[%clk 0:02:52]}  e6 {[%clk 0:02:53]} 5. O-O {[%clk 0:02:52]}  Ngf6 {[%clk 0:02:53]} 6. Nbd2 {[%clk 0:02:47]}  Bb7 {[%clk 0:02:52]} 7. a4 {[%clk 0:02:45]}  a6 {[%clk 0:02:52]} 8. Nb3 {[%clk 0:02:40]}  c5 {[%clk 0:02:51]} 9. dxc5 {[%clk 0:02:39]}  Nxc5 {[%clk 0:02:52]} 10. Nbd4 {[%clk 0:02:22]}  bxa4 {[%clk 0:02:51]} 11. Bg5 {[%clk 0:02:04]}  Bd6 {[%clk 0:02:48]} 12. Qc1 {[%clk 0:01:18]}  O-O {[%clk 0:02:45]} 13. c4 {[%clk 0:01:17]}  e5 {[%clk 0:02:33]} 14. Nf5 {[%clk 0:01:07]}  Nb3 {[%clk 0:02:34]} 15. Qb1 {[%clk 0:00:42]}  Nxa1 {[%clk 0:02:33]} 16. Qxa1 {[%clk 0:00:37]}  h6 {[%clk 0:02:21]} 17. Bd2 {[%clk 0:00:26]}  d4 {[%clk 0:02:15]} 18. Qxa4 {[%clk 0:00:23]}  Be4 {[%clk 0:02:14]} 19. Nxd6 {[%clk 0:00:21]}  Qxd6 {[%clk 0:02:15]} 20. Bb4 {[%clk 0:00:21]}  Qe6 {[%clk 0:01:58]} 21. Bxf8 {[%clk 0:00:20]}  Rxf8 {[%clk 0:01:59]} 22. Qa5 {[%clk 0:00:18]}  Bxf3 {[%clk 0:01:57]} 23. Bxf3 {[%clk 0:00:17]}  e4 {[%clk 0:01:57]} 24. Bg2 {[%clk 0:00:17]}  Qxc4 {[%clk 0:01:58]} 25. Qe5 {[%clk 0:00:14]}  Re8 {[%clk 0:01:53]} 26. Qd6 {[%clk 0:00:12]}  e3 {[%clk 0:01:29]} 27. fxe3 {[%clk 0:00:10]}  Rxe3 {[%clk 0:01:30]} 28. Qd8+ {[%clk 0:00:06]}  Re8 {[%clk 0:01:29]} 29. Qd6 {[%clk 0:00:05]}  Rxe2 {[%clk 0:01:27]} 30. Rxf6 {[%clk 0:00:04]}  gxf6 {[%clk 0:01:21]} 31. Qxf6 {[%clk 0:00:02]}  Qc1+ {[%clk 0:01:11]} 32. Bf1 {[%clk 0:00:02]}  Qe3+ {[%clk 0:01:12]} 33. Kh1 {[%clk 0:00:00]}  Rf2 {[%clk 0:01:11]} 0-1


[Site "https://www.chess.com"]

[Event "Titled Tuesday Blitz July 4 Late 2023"]
[White "Castella Garcia, Fausto"]
[Black "Rasulov, Vugar"]
[WhiteFideId "3501922"]
[BlackFideId "13402390"]
[WhiteElo "2406"]
[BlackElo "2917"]
[Result "1-0"]
[Round "2"]
[TimeControl "180+2"]
[Date "2023.07.04"]
[WhiteClock "0:00:31"]
[BlackClock "0:01:01"]
[Board "104"]

1. e4 {[%clk 0:03:00]}  c5 {[%clk 0:03:00]} 2. Nf3 {[%clk 0:03:00]}  e6 {[%clk 0:03:00]} 3. Nc3 {[%clk 0:03:00]}  Nc6 {[%clk 0:03:01]} 4. Bb5 {[%clk 0:02:59]}  Nge7 {[%clk 0:03:00]} 5. O-O {[%clk 0:02:59]}  a6 {[%clk 0:03:01]} 6. Bxc6 {[%clk 0:02:59]}  Nxc6 {[%clk 0:03:02]} 7. d4 {[%clk 0:02:59]}  cxd4 {[%clk 0:03:03]} 8. Nxd4 {[%clk 0:02:59]}  d6 {[%clk 0:03:03]} 9. Re1 {[%clk 0:02:56]}  Be7 {[%clk 0:03:03]} 10. Nxc6 {[%clk 0:02:56]}  bxc6 {[%clk 0:03:04]} 11. Qg4 {[%clk 0:02:55]}  O-O {[%clk 0:03:03]} 12. Bh6 {[%clk 0:02:55]}  Bf6 {[%clk 0:03:03]} 13. e5 {[%clk 0:02:56]}  dxe5 {[%clk 0:02:59]} 14. Ne4 {[%clk 0:02:56]}  Kh8 {[%clk 0:02:53]} 15. Rad1 {[%clk 0:02:55]}  Qe7 {[%clk 0:02:53]} 16. Be3 {[%clk 0:02:55]}  Rg8 {[%clk 0:02:44]} 17. Bc5 {[%clk 0:02:54]}  Qc7 {[%clk 0:02:45]} 18. Nxf6 {[%clk 0:02:49]}  gxf6 {[%clk 0:02:45]} 19. Qh4 {[%clk 0:02:48]}  Rg6 {[%clk 0:02:40]} 20. Re3 {[%clk 0:02:12]}  e4 {[%clk 0:02:19]} 21. Bd6 {[%clk 0:01:45]}  Qa5 {[%clk 0:02:17]} 22. Rh3 {[%clk 0:01:29]}  h6 {[%clk 0:02:17]} 23. Qxe4 {[%clk 0:01:26]}  e5 {[%clk 0:01:58]} 24. Bb4 {[%clk 0:01:24]}  Qxa2 {[%clk 0:01:41]} 25. Rd8+ {[%clk 0:01:17]}  Kh7 {[%clk 0:01:23]} 26. Rxh6+ {[%clk 0:01:16]}  Kg7 {[%clk 0:01:22]} 27. Bf8+ {[%clk 0:01:08]}  Kg8 {[%clk 0:01:23]} 28. Be7+ {[%clk 0:00:58]}  Kg7 {[%clk 0:01:20]} 29. Bf8+ {[%clk 0:00:34]}  Kg8 {[%clk 0:01:20]} 30. Rxg6+ {[%clk 0:00:31]}  fxg6 {[%clk 0:01:19]} 31. Qxg6+ {[%clk 0:00:31]}  Kh8 {[%clk 0:01:01]} 32. Qg7# {[%clk 0:00:31]} 1-0


[Site "https://www.chess.com"]